bitfinex/quotes_ETHUSD_20250430
["timestamp","ask_amount","ask_price","bid_price","bid_amount"]
[1746043806435,12.6091181,1803.8,1803.4,10.89485993]
[1746043806436,6.08999999,1803.8,1803.4,10.89485993]
[1746043806732,6.08999999,1803.8,1803.4,11.66875993]
[1746043806901,6.08999999,1803.8,1803.5,5.54476492]
[1746043807098,6.08999999,1803.8,1803.5,7.26600373]
[1746043807297,6.08999999,1803.8,1803.7,5.54415922]
[1746043807923,6.08999999,1803.8,1803.6,11.08854575]
[1746043808129,6.08999999,1803.8,1803.7,5.54415922]
[1746043808506,6.08999999,1804.6,1803.9,5.54354454]
[1746043808705,6.08999999,1804.6,1804.4,5.54186168]
[1746043808905,6.08999999,1804.6,1804.5,5.35]
[1746043809722,1.0,1805.0,1804.5,10.94695294]
[1746043809957,1.0,1805.0,1804.6,0.7648]
[1746043810273,1.8051,1805.0,1804.7,5.35]
[1746043810563,5.54096389,1804.8,1804.7,5.35]
[1746043810728,6.64910759,1804.8,1804.7,5.35]
[1746043811339,1.1081437,1804.8,1804.7,5.35]
[1746043811539,5.54047315,1804.9,1804.7,5.35]
[1746043812160,11.08121885,1804.9,1804.7,5.35]
[1746043812368,5.54047315,1804.9,1804.7,5.35]
[1746043813570,11.08123634,1804.9,1804.7,5.35]
[1746043813766,5.54071695,1804.9,1804.7,5.35]
[1746043814074,5.54084346,1804.8,1804.5,5.259]
[1746043814370,6.27523204,1804.9,1804.5,10.80068757]
[1746043814570,0.73458169,1804.9,1804.5,10.80068757]
[1746043814772,1.0,1805.0,1804.9,5.54047315]
[1746043814927,1.0,1805.0,1804.9,5.259]
[1746043815131,12.63016619,1805.0,1804.9,5.259]
[1746043815363,8.35301661,1805.0,1804.8,5.259]
[1746043815530,7.08999999,1805.0,1804.9,5.259]
[1746043815732,7.08999999,1805.0,1804.9,10.79947315]
[1746043816468,7.08999999,1805.0,1804.9,5.259]
[1746043816861,7.08999999,1805.0,1804.9,10.79947315]
[1746043817453,7.08999999,1805.0,1804.9,5.259]
[1746043817847,12.63028496,1805.0,1804.9,5.259]
[1746043818295,5.54107135,1804.8,1804.4,0.7849]
[1746043818587,5.54060719,1804.9,1804.5,10.80054986]
[1746043818793,6.08999999,1805.4,1805.0,0.8313]
[1746043818945,0.8206,1806.3,1805.9,5.5372395]
[1746043819145,3.70846969,1806.4,1806.2,5.53642646]
[1746043819362,5.53622476,1806.3,1806.0,5.259]
[1746043819586,6.46078635,1806.3,1805.9,0.8313]
[1746043819788,6.46084141,1806.3,1806.1,5.258]
[1746043819991,3.70846969,1806.4,1806.3,5.53617892]
[1746043820950,3.70846969,1806.4,1806.3,6.36747892]
[1746043822178,0.406936,1806.6,1806.3,6.36747892]
[1746043822179,0.406936,1806.6,1806.3,6.36739848]
[1746043822381,12.62646623,1806.6,1806.4,5.256]
[1746043822601,7.09113785,1806.6,1806.4,5.256]
[1746043822968,12.62657018,1806.6,1806.4,5.256]
[1746043823969,7.09113785,1806.6,1806.4,5.256]
[1746043824164,12.62650761,1806.6,1806.4,5.256]
[1746043824571,12.62658071,1806.6,1806.4,5.256]
[1746043824791,1.26265807,1806.5,1806.0,19.0755]
[1746043824996,5.53648543,1806.2,1806.1,5.256]
[1746043825178,5.53633441,1806.3,1806.1,5.256]
[1746043825382,5.53648543,1806.2,1806.1,5.256]
[1746043827969,5.53771181,1805.8,1805.7,5.255]
[1746043828300,5.53740517,1805.9,1805.2,19.1306]
[1746043828301,11.62759688,1805.9,1805.2,19.1306]
[1746043828502,5.53844276,1805.6,1805.3,5.255]
[1746043828705,5.5382009,1805.7,1805.3,5.255]
[1746043828913,11.62745606,1805.9,1805.2,19.1306]
[1746043829068,5.53924555,1805.3,1805.2,23.558]
[1746043829712,11.62924555,1805.3,1805.2,5.255]
[1746043831902,11.62924555,1805.3,1805.2,5.47994444]
[1746043833773,5.54139421,1804.6,1804.5,18.301]
[1746043833972,5.54047315,1804.9,1804.8,5.255]
[1746043834212,5.54047315,1804.9,1804.8,5.42832466]
[1746043834382,5.54078014,1804.8,1804.2,5.256]
[1746043834583,5.54244405,1804.3,1804.0,5.256]
[1746043834798,5.54254718,1804.3,1804.0,5.256]
[1746043835347,6.09,1804.7,1804.1,0.85602741]
[1746043835549,11.63050089,1804.9,1804.5,11.88359585]
[1746043835684,6.09,1804.9,1804.6,11.98575196]
[1746043835978,6.09,1804.9,1804.7,0.13558664]
[1746043836179,6.09,1804.9,1804.6,11.98575196]
[1746043836384,6.09,1804.9,1804.7,0.13558664]
[1746043836610,6.09,1804.9,1804.6,6.49977034]
[1746043836784,6.09,1804.9,1804.8,0.13554559]
[1746043837226,5.53934927,1805.3,1804.9,5.54037224]
[1746043837436,5.53934927,1805.3,1805.0,6.0579]
[1746043837725,5.53985928,1805.1,1805.0,5.3914635]
[1746043838025,5.5396483,1805.2,1805.0,5.3914635]
[1746043838026,5.53972668,1805.2,1805.0,5.3914635]
[1746043839481,6.09,1805.4,1805.0,10.93146318]
[1746043839794,6.09,1805.4,1805.3,5.53924555]
[1746043839996,5.53827332,1805.7,1805.3,5.67221274]
[1746043839997,11.62827332,1805.7,1805.3,5.67221274]
[1746043840720,11.62827332,1805.7,1805.3,5.6720257]
[1746043841013,6.09,1805.7,1805.3,0.13296719]
[1746043841212,5.53872125,1805.5,1805.3,0.13296719]
[1746043841531,5.53893873,1805.4,1805.3,0.13296719]
[1746043841826,5.53893873,1805.4,1805.0,10.79602879]
[1746043842303,5.53946921,1805.3,1805.1,0.13166999]
[1746043842505,5.53909907,1805.4,1805.1,0.13166999]
[1746043842729,6.32513008,1805.5,1805.1,5.67150619]
[1746043842883,5.5389742,1805.4,1805.1,5.67150619]
[1746043843084,6.10066777,1805.4,1805.1,0.13166999]
[1746043843280,5.5395524,1805.2,1805.1,0.13166999]
[1746043843812,5.53847359,1805.6,1805.1,10.92846551]
[1746043844014,5.53872524,1805.5,1805.1,16.46798734]
[1746043844317,5.53872524,1805.5,1805.1,10.92830847]
[1746043844825,6.699,1805.7,1805.1,5.38866999]
[1746043845022,6.699,1805.7,1805.4,5.53891972]
[1746043845023,6.09,1805.7,1805.4,5.53891972]
[1746043845208,11.62806388,1805.7,1805.3,5.53909439]
[1746043845521,11.62806388,1805.7,1805.5,0.13128522]
[1746043845522,6.09,1805.7,1805.5,0.13128522]
[1746043845819,6.09,1805.7,1805.6,0.1312442]
[1746043846219,6.09,1805.7,1805.4,5.5387675]
[1746043846409,6.09,1805.7,1805.6,0.1312442]
[1746043846624,6.09,1805.7,1805.5,5.66979038]
[1746043846829,12.38492606,1805.9,1805.6,0.1312442]
[1746043847127,6.09,1806.2,1806.0,5.53687234]
[1746043847326,6.09,1806.4,1806.1,5.53668082]
[1746043847529,6.09,1806.4,1806.1,5.66772001]
[1746043847727,6.92605411,1806.6,1806.4,5.53572965]
[1746043847728,0.406936,1806.6,1806.4,5.53572965]
[1746043847924,0.406936,1806.6,1806.4,10.79172965]
[1746043848093,0.406936,1806.6,1806.5,0.13087527]
[1746043850527,5.9421956,1806.6,1806.5,0.13087527]
[1746043851130,6.496936,1806.6,1806.5,0.13087527]
[1746043851725,12.0321956,1806.6,1806.5,0.13087527]
[1746043852028,13.23539775,1806.6,1806.5,0.13087527]
[1746043852797,12.0321956,1806.6,1806.5,0.13087527]
[1746043854820,12.7895956,1806.6,1806.5,0.13087527]
[1746043855023,5.53556601,1806.5,1806.4,5.256]
[1746043855530,5.53556601,1806.5,1806.4,5.36017379]
[1746043859134,5.53556601,1806.5,1806.4,0.10417379]
[1746043859338,14.26898217,1806.5,1806.4,1e-08]
[1746043859553,5.53740517,1805.9,1805.8,5.254]
[1746043859724,11.62740517,1805.9,1805.8,5.254]
[1746043862728,6.09,1805.9,1805.8,11.59121181]
[1746043862906,6.09,1806.1,1805.8,12.75033299]
[1746043863115,6.09,1806.1,1806.0,5.53709856]
[1746043863737,6.09,1806.1,1805.9,5.53725848]
[1746043864352,5.53713646,1806.0,1805.8,6.0535]
[1746043864652,5.53717111,1806.0,1805.8,6.0535]
[1746043864837,6.09,1806.1,1805.8,6.0535]
[1746043865146,11.62690605,1806.1,1805.8,6.0535]
[1746043865335,6.09,1806.1,1805.8,6.0535]
[1746043865507,6.09,1806.1,1805.8,11.59109728]
[1746043866750,6.09,1806.1,1805.8,6.0535]
[1746043866931,11.62696349,1806.1,1805.8,6.0535]
[1746043867749,6.09,1806.1,1805.8,11.59120139]
[1746043867949,6.09,1806.1,1805.8,13.30387511]
[1746043868249,6.09,1806.1,1805.9,5.53719791]
[1746043868454,6.09,1806.2,1805.9,5.53740517]
[1746043868652,6.09,1806.2,1806.0,5.53707637]
[1746043869018,6.09,1806.2,1806.0,5.53691299]
[1746043870745,6.09,1806.2,1806.0,5.53682815]
[1746043870945,6.09,1806.2,1806.1,10.79079198]
[1746043871154,6.09,1806.2,1806.1,5.254]
[1746043871537,11.62558344,1806.5,1806.1,6.0244]
[1746043871722,5.53602306,1806.4,1806.1,6.0244]
[1746043871922,5.53648543,1806.2,1806.1,5.254]
[1746043872129,5.53765919,1805.9,1805.5,0.7796]
[1746043872324,11.62775232,1805.8,1805.5,6.0336]
[1746043872522,5.5381871,1805.7,1805.5,5.254]
[1746043873529,11.62784183,1805.8,1805.5,5.254]
[1746043873868,6.09,1805.8,1805.5,10.79247548]
[1746043874026,6.09,1805.8,1805.5,5.254]
[1746043874227,11.62793735,1805.8,1805.5,5.254]
[1746043874427,11.62793735,1805.8,1805.5,10.79262335]
[1746043874975,5.53802629,1805.7,1805.5,5.254]
[1746043875171,17.1658898,1805.8,1805.5,5.254]
[1746043875344,11.62793735,1805.8,1805.5,5.254]
[1746043876140,5.53832521,1805.6,1805.5,5.254]
[1746043877374,11.62832521,1805.6,1805.5,5.254]
[1746043878176,6.09,1805.6,1805.5,5.254]
[1746043878380,11.62854683,1805.6,1805.3,23.551]
[1746043878582,11.62865119,1805.5,1805.3,23.551]
[1746043878775,6.09,1805.4,1804.9,0.7707]
[1746043878978,6.09,1805.4,1804.7,0.28959031]
[1746043878979,5.5401662,1805.0,1804.7,11.85328021]
[1746043879275,6.09,1805.0,1804.7,11.5636899]
[1746043879472,6.09,1805.0,1804.9,5.54047315]
[1746043879679,6.09,1805.2,1805.0,5.54015067]
[1746043880052,6.09,1805.2,1804.9,5.54047315]
[1746043880435,6.09,1805.2,1805.0,5.54016484]
[1746043881387,6.09,1805.2,1805.1,11.56355928]
[1746043881537,6.09,1805.5,1805.4,5.53893873]
[1746043881743,6.09,1805.7,1805.5,6.30923428]
[1746043882074,6.09,1805.7,1805.5,6.0237]
[1746043882243,6.09,1805.7,1805.5,5.253]
[1746043882440,5.53832521,1805.6,1805.5,5.253]
[1746043882762,6.09,1805.7,1805.5,5.253]
[1746043883339,6.09,1805.7,1805.5,10.79163159]
[1746043883540,6.09,1805.8,1805.6,5.53832521]
[1746043883783,6.09,1805.8,1805.6,11.84396228]
[1746043883946,6.09,1805.8,1805.6,0.7675]
[1746043884147,6.09,1805.8,1805.7,5.53801849]
[1746043884685,6.09,1805.8,1805.6,0.7675]
[1746043885101,11.62773371,1805.8,1805.6,0.7675]
[1746043885303,6.09,1805.8,1805.6,0.7675]
[1746043885613,5.5381624,1805.7,1805.5,5.253]
[1746043886290,5.53812418,1805.7,1805.5,5.253]
[1746043888210,11.62783558,1805.8,1805.5,5.253]
[1746043888394,5.53812682,1805.7,1805.5,5.253]
[1746043888903,5.53832521,1805.6,1805.5,5.253]
[1746043889091,11.62832521,1805.6,1805.5,5.253]
[1746043890310,13.34497041,1805.6,1805.5,5.253]
[1746043892326,6.09,1805.6,1805.5,5.253]
[1746043892532,6.04,1805.6,1805.5,5.253]
[1746043893227,6.04,1805.8,1805.7,5.53801849]
[1746043893394,6.04,1805.8,1805.6,5.53814987]
[1746043893590,6.04,1805.8,1805.6,6.61725004]
[1746043893790,6.04,1805.8,1805.6,1.07911499]
[1746043894100,6.04,1805.8,1805.6,11.07627858]
[1746043894490,6.04,1805.8,1805.7,5.53801849]
[1746043895606,6.04,1805.8,1805.7,6.30991849]
[1746043895917,6.04,1806.2,1805.9,5.53722404]
[1746043896111,6.04,1806.2,1805.9,10.79022404]
[1746043896312,6.04,1806.2,1805.9,10.79017806]
[1746043896504,6.04,1806.2,1806.0,5.53705949]
[1746043897295,6.04,1806.2,1805.9,10.79023576]
[1746043897516,6.04,1806.2,1806.0,5.53709076]
[1746043898226,6.04,1806.2,1805.9,10.79022907]
[1746043898689,11.57658165,1806.2,1805.9,10.79038623]
[1746043898888,11.57658165,1806.2,1805.9,5.253]
[1746043899338,11.57658165,1806.2,1805.9,10.79039545]
[1746043899638,6.04,1806.2,1805.9,10.79039545]
[1746043900005,6.04,1806.2,1806.0,5.53708593]
[1746043900212,6.04,1806.2,1806.0,5.53690299]
[1746043900420,6.04,1806.2,1805.9,12.42304025]
[1746043900922,6.04,1806.2,1805.9,17.96021784]
[1746043901125,6.04,1806.2,1805.9,12.42296738]
[1746043901539,6.04,1806.2,1806.0,5.53699939]
[1746043901735,6.04,1806.2,1806.0,5.53687335]
[1746043902140,6.04,1806.2,1806.1,6.33369198]
[1746043902626,6.04,1806.2,1806.1,0.7969]
[1746043903822,11.57659308,1806.2,1805.9,5.253]
[1746043904000,11.57659308,1806.2,1805.9,10.79040195]
[1746043904200,6.04,1806.2,1805.9,10.79040195]
[1746043904615,11.57661885,1806.2,1805.9,5.253]
[1746043905015,6.04,1806.2,1805.9,10.79022549]
[1746043905245,11.57652379,1806.2,1805.9,5.253]
[1746043905841,5.53709856,1806.0,1805.9,5.253]
[1746043906513,11.57709856,1806.0,1805.9,5.253]
[1746043908920,12.37149856,1806.0,1805.9,5.253]
[1746043909117,5.53832521,1805.6,1805.5,5.245]
[1746043909334,11.57832521,1805.6,1805.5,5.245]
[1746043909755,6.04,1805.6,1805.5,5.245]
[1746043910363,6.04,1805.6,1805.5,14.24589372]
[1746043911860,6.04,1805.6,1805.5,8.70726177]
[1746043912167,6.04,1805.6,1805.5,5.245]
[1746043913169,6.04,1805.6,1805.5,10.78363195]
[1746043916857,6.04,1805.6,1805.5,11.55083195]
[1746043918338,6.04,1806.0,1805.7,5.53773395]
[1746043918879,6.04,1806.0,1805.8,5.5376977]
[1746043920572,6.04,1806.0,1805.7,5.53773395]
[1746043920870,6.04,1806.0,1805.8,5.53770564]
[1746043921473,6.04,1806.0,1805.9,5.53740517]
[1746043921642,6.04,1806.1,1806.0,5.53709856]
[1746043922691,6.04,1806.3,1806.2,5.53648543]
[1746043923290,0.5,1806.4,1806.3,5.53617892]
[1746043923582,1e-08,1806.6,1806.5,9.85306601]
[1746043923882,1e-08,1806.6,1806.5,9.90840248]
[1746043924056,1e-08,1806.6,1806.5,11.45281763]
[1746043924252,1e-08,1806.6,1806.5,11.39748116]
[1746043924583,1e-08,1807.1,1807.0,9.90123431]
[1746043924751,1e-08,1807.1,1807.0,33.49555615]
[1746043924950,1e-08,1807.1,1807.0,37.3432127]
[1746043925965,1e-08,1807.1,1807.0,37.74916786]
[1746043926284,0.005,1807.7,1807.6,6.34939738]
[1746043926467,0.005,1807.7,1807.6,11.59339738]
[1746043929285,0.005,1807.7,1807.6,6.0612]
[1746043929655,0.005,1807.7,1807.6,11.59339738]
[1746043929856,0.005,1807.7,1807.6,13.30596642]
[1746043930192,0.005,1807.7,1807.6,1.71256904]
[1746043930389,0.005,1807.7,1807.6,5.242]
[1746043931102,5.53689135,1807.7,1807.6,5.242]
[1746043931295,11.57689135,1807.7,1807.6,5.242]
[1746043932073,6.045,1807.7,1807.6,5.242]
[1746043932488,11.57689135,1807.7,1807.6,5.242]
[1746043933582,6.045,1807.7,1807.6,5.242]
[1746043933781,6.045,1807.7,1807.0,22.19797839]
[1746043933981,5.53403431,1807.0,1806.9,5.23]
[1746043934369,11.57403431,1807.0,1806.9,5.23]
[1746043936075,6.04,1807.0,1806.9,5.23]
[1746043936373,11.57403431,1807.0,1806.9,5.23]
[1746043936580,19.25757199,1807.0,1806.9,5.23]
[1746043936771,20.04707199,1807.0,1806.9,5.23]
[1746043938581,5.53541322,1806.6,1806.5,5.231]
[1746043938809,11.57541322,1806.6,1806.5,5.231]
[1746043939507,5.53671375,1806.2,1805.9,5.231]
[1746043939803,17.11347586,1806.2,1805.9,5.7541]
[1746043940105,5.53683431,1806.1,1805.9,5.7541]
[1746043940275,5.53681763,1806.1,1805.9,5.7541]
[1746043940472,6.04,1806.2,1806.0,5.53700403]
[1746043940701,6.04,1806.2,1806.0,1.1291104]
[1746043940877,6.04,1806.2,1806.0,6.66617267]
[1746043941273,6.04,1806.2,1806.1,5.53679198]
[1746043941470,6.04,1806.2,1806.0,7.42997267]
[1746043941683,6.04,1806.2,1806.0,1.8929104]
[1746043941886,6.04,1806.2,1805.9,11.29150198]
[1746043942209,6.04,1806.2,1806.1,5.53679198]
[1746043942390,6.04,1806.5,1806.2,5.53636782]
[1746043942593,6.04,1806.5,1806.3,5.232]
[1746043944402,11.57569935,1806.5,1806.3,5.232]
[1746043944617,11.57579676,1806.5,1806.3,5.232]
[1746043944980,5.53587245,1806.4,1806.3,5.232]
[1746043946707,6.04,1806.5,1806.4,5.53587245]
[1746043947573,11.57483006,1806.8,1806.4,11.0717449]
[1746043947770,11.57483006,1806.8,1806.4,5.53587245]
[1746043947995,11.57483006,1806.8,1806.4,11.07137341]
[1746043948222,11.57483006,1806.8,1806.4,11.07138415]
[1746043948584,11.57483006,1806.8,1806.4,5.53567329]
[1746043948924,11.57483006,1806.8,1806.4,12.70173304]
[1746043949081,11.57483006,1806.8,1806.5,5.53548563]
[1746043949482,11.57483006,1806.8,1806.4,7.16611601]
[1746043949790,5.53505647,1806.7,1806.3,10.76807941]
[1746043949989,11.57480868,1806.8,1806.4,5.53557973]
[1746043950299,6.04,1806.8,1806.5,5.53532445]
[1746043950502,6.04,1806.8,1806.5,11.07069742]
[1746043950681,6.04,1806.8,1806.5,6.64239419]
[1746043950881,6.04,1806.8,1806.5,5.53532445]
[1746043951078,6.04,1806.8,1806.6,5.53514045]
[1746043951419,5.94,1806.8,1806.6,5.53514045]
[1746043951576,5.94,1806.8,1806.5,5.53535584]
[1746043951785,5.94,1806.8,1806.5,6.32725584]
[1746043952307,5.94,1806.8,1806.6,5.53522702]
[1746043952815,5.94,1806.8,1806.7,10.76695322]
[1746043954215,5.94,1807.3,1806.8,0.7919]
[1746043954405,11.47317431,1807.3,1807.0,5.5338672]
[1746043954607,11.47317431,1807.3,1807.1,5.231]
[1746043955185,5.94,1807.3,1807.1,5.231]
[1746043955726,5.94,1807.6,1807.4,5.53267825]
[1746043956025,0.005,1807.7,1807.6,0.7615]
[1746043956607,0.005,1807.7,1807.5,10.76329646]
[1746043957279,0.005,1807.7,1807.6,5.53219738]
[1746043957904,0.005,1807.7,1807.5,10.76338534]
[1746043958113,0.005,1807.7,1807.5,5.231]
[1746043958386,0.005,1807.7,1807.5,10.76337644]
[1746043958997,0.005,1807.7,1807.5,12.46904129]
[1746043959198,0.005,1807.7,1807.6,5.53219738]
[1746043959802,0.005,1807.7,1807.5,12.46904129]
[1746043960498,0.005,1807.7,1807.5,5.231]
[1746043960719,12.27761643,1807.7,1807.5,5.231]
[1746043960898,6.7456,1807.7,1807.5,5.231]
[1746043961115,5.945,1807.7,1807.5,5.231]
[1746043961324,5.945,1807.7,1807.6,5.53219738]
[1746043961532,5.945,1807.7,1807.5,11.52497485]
[1746043961700,0.005,1807.7,1807.5,11.52497485]
[1746043962029,0.005,1807.7,1807.5,11.52492851]
[1746043962211,0.005,1807.7,1807.5,10.76346347]
[1746043962412,0.005,1807.7,1807.5,12.39291693]
[1746043963020,0.005,1807.7,1807.5,12.39288462]
[1746043964132,0.005,1807.7,1807.5,6.86060097]
[1746043964290,0.005,1807.7,1807.5,5.231]
[1746043964491,0.7976,1807.6,1807.1,0.7773]
[1746043964690,5.53311569,1807.3,1807.2,5.219]
[1746043965100,0.7976,1807.6,1807.3,5.53311273]
[1746043965328,0.005,1807.7,1807.6,5.53219738]
[1746043965534,0.005,1807.7,1807.6,5.219]
[1746043966593,0.005,1807.7,1807.6,10.75119738]
[1746043966794,0.005,1807.7,1807.6,5.219]
[1746043966988,0.005,1807.7,1807.6,10.75119738]
[1746043967188,0.005,1807.7,1807.6,12.3795496]
[1746043968127,0.005,1807.7,1807.6,5.219]
[1746043969296,0.005,1807.7,1807.6,10.75119738]
[1746043970027,0.005,1807.7,1807.6,5.219]
[1746043971206,12.27899135,1807.7,1807.6,5.219]
[1746043972322,6.7471,1807.7,1807.6,5.219]
[1746043973330,5.945,1807.7,1807.6,5.219]
[1746043973717,11.47689135,1807.7,1807.6,5.219]
[1746043975439,5.945,1807.7,1807.6,5.219]
[1746043975737,5.945,1807.7,1807.6,10.75119738]
[1746043976156,5.945,1807.7,1807.6,12.379556]
[1746043976320,5.945,1807.7,1807.6,13.175856]
[1746043976834,5.945,1807.7,1807.6,5.219]
[1746043977136,11.47689135,1807.7,1807.6,5.219]
[1746043977512,12.30029135,1807.7,1807.6,5.219]
[1746043980252,12.30029135,1807.7,1807.1,23.81553965]
[1746043980253,0.8222,1807.5,1807.1,18.282]
[1746043980411,5.53342186,1807.2,1807.1,5.219]
[1746043980606,5.94,1807.2,1807.1,5.219]
[1746043981934,11.47342186,1807.2,1807.1,5.219]
[1746043982125,5.94,1807.2,1807.1,5.219]
[1746043983234,5.94,1807.2,1807.1,11.82802825]
[1746043984668,0.005,1807.7,1807.6,5.53219738]
[1746043984952,0.005,1807.7,1807.6,12.09309738]
[1746043985155,0.05,1807.9,1807.8,5.53158535]
[1746043985319,6.7434,1808.8,1808.3,5.53005585]
[1746043985524,5.94,1808.7,1808.3,10.74905585]
[1746043985720,0.8034,1808.8,1808.3,12.61586144]
[1746043985948,1e-08,1808.4,1808.3,16.16586144]
[1746043986190,1e-08,1808.4,1808.3,12.61586144]
[1746043986459,1e-08,1808.4,1808.3,16.16586144]
[1746043986655,1e-08,1808.4,1808.3,16.03072728]
[1746043986826,1e-08,1808.4,1808.3,16.58072728]
[1746043987352,1e-08,1808.4,1808.3,11.29905585]
[1746043987536,1e-08,1808.4,1808.3,15.10505585]
[1746043988039,1e-08,1808.9,1808.8,9.3345272]
[1746043988241,1e-08,1808.9,1808.7,5.52864435]
[1746043988421,1e-08,1808.9,1808.7,10.74653969]
[1746043988751,1e-08,1808.9,1808.7,5.218]
[1746043989052,1e-08,1808.9,1808.8,5.5285272]
[1746043989252,1e-08,1808.9,1808.8,7.15604157]
[1746043989438,1e-08,1808.9,1808.8,7.92174157]
[1746043989648,1e-08,1808.9,1808.8,8.52701303]
[1746043990040,1e-08,1808.9,1808.8,7.92174157]
[1746043990250,1e-08,1808.9,1808.8,11.5122272]
[1746043990456,5.52844415,1808.9,1808.3,23.80884935]
[1746043990639,1e-08,1808.9,1808.4,5.27228689]
[1746043990840,1e-08,1808.9,1808.5,5.52930277]
[1746043991041,1e-08,1808.9,1808.5,5.52920695]
[1746043991243,1e-08,1808.9,1808.8,5.5285272]
[1746043991444,1e-08,1808.9,1808.8,10.7455272]
[1746043991630,1e-08,1808.9,1808.8,10.80080378]
[1746043992664,1e-08,1808.9,1808.8,11.35080378]
[1746043992842,1e-08,1808.9,1808.8,11.2955272]
[1746043993042,1e-08,1808.9,1808.8,16.86664179]
[1746043993265,1e-08,1808.9,1808.8,13.31664179]
[1746043993466,1e-08,1808.9,1808.8,13.86664179]
[1746043993698,1e-08,1808.9,1808.8,13.31664179]
[1746043994431,1e-08,1808.9,1808.8,13.86664179]
[1746043994737,1e-08,1808.9,1808.8,13.31664179]
[1746043995443,1e-08,1808.9,1808.8,13.86664179]
[1746043995642,1e-08,1808.9,1808.8,16.86664179]
[1746043995863,1e-08,1808.9,1808.8,17.78902157]
[1746043996067,1e-08,1808.9,1808.8,18.67372344]
[1746043996769,1e-08,1808.9,1808.8,19.08335555]
[1746043997667,1e-08,1808.9,1808.8,19.28335555]
[1746043997866,1e-08,1808.9,1808.8,19.08335555]
[1746043998087,1e-08,1808.9,1808.8,18.19865368]
[1746043998309,1e-08,1808.9,1808.8,19.08335555]
[1746043998588,1e-08,1809.5,1809.4,6.32599393]
[1746043998766,1e-08,1809.5,1809.4,31.59152539]
[1746043999096,1e-08,1809.9,1809.8,5.52547242]
[1746043999307,1e-08,1809.9,1809.8,5.206]
[1746043999500,0.7985,1809.8,1809.5,5.205]
[1746043999667,5.52699939,1809.3,1809.1,5.205]
[1746043999869,0.7985,1809.3,1808.8,0.05527136]
[1746044000176,5.52548964,1809.8,1808.8,0.05527136]
[1746044000177,0.7985,1809.8,1809.2,5.52730488]
[1746044000365,1e-08,1809.9,1809.7,5.52552445]
[1746044000565,1e-08,1809.9,1809.8,5.58071893]
[1746044000767,1e-08,1809.9,1809.8,10.78571248]
[1746044001016,1e-08,1809.9,1809.8,13.73013617]
[1746044001249,1e-08,1809.9,1809.8,13.12489611]
[1746044001524,1e-08,1810.2,1810.1,5.52455665]
[1746044001663,1e-08,1810.2,1810.1,10.81545566]
[1746044001869,1e-08,1810.2,1810.1,11.70015753]
[1746044002065,1e-08,1810.2,1810.1,7.24705859]
[1746044002320,1e-08,1810.2,1810.1,8.01035859]
[1746044002482,1e-08,1810.2,1810.1,8.06558428]
[1746044002806,1e-08,1810.2,1809.8,22.89612369]
[1746044002807,5.52441398,1810.2,1809.8,18.265]
[1746044003014,0.8145,1810.0,1809.7,5.204]
[1746044003379,5.52547242,1809.8,1809.7,5.204]
[1746044004067,5.52541032,1809.9,1809.7,5.204]
[1746044004275,5.52547242,1809.8,1809.7,5.204]
[1746044004586,6.63056069,1809.8,1809.7,5.204]
[1746044004896,1.10508827,1809.8,1809.4,10.73044591]
[1746044005111,6.33962646,1810.0,1809.4,10.73044591]
[1746044005289,11.05072893,1809.9,1809.4,5.204]
[1746044005488,5.52593398,1809.7,1809.4,5.204]
[1746044005684,0.7931,1809.3,1809.1,21.82609663]
[1746044005913,0.7931,1809.3,1809.1,3.56609663]
[1746044005914,5.52730488,1809.2,1809.1,3.56609663]
[1746044006587,6.71204734,1809.2,1809.1,3.56609663]
[1746044006792,7.50514734,1809.2,1809.1,3.56609663]
[1746044006993,6.3216272,1808.8,1808.7,5.204]
[1746044007329,5.52883286,1808.7,1808.6,4.68763925]
[1746044007629,0.7931,1809.1,1808.7,5.52883286]
[1746044007832,0.7931,1809.1,1808.7,1.02164721]
[1746044008036,5.52822157,1808.9,1808.8,5.204]
[1746044008685,6.32132157,1808.9,1808.8,5.204]
[1746044010295,0.7931,1808.9,1808.8,5.204]
[1746044010591,5.52786793,1809.1,1808.8,5.204]
[1746044010831,5.52822157,1808.9,1808.8,5.204]
[1746044011138,6.32529776,1809.0,1808.8,5.204]
[1746044011434,5.52782079,1809.1,1808.8,5.204]
[1746044011731,0.7972,1809.4,1808.8,5.204]
[1746044011943,5.52816241,1809.0,1808.8,5.204]
[1746044012144,5.52822157,1808.9,1808.8,5.204]
[1746044012296,6.32542157,1808.9,1808.8,5.204]
[1746044012634,6.32542157,1808.9,1808.4,5.58498548]
[1746044012635,1.42974216,1808.9,1808.2,5.53024543]
[1746044012822,5.52894136,1808.7,1808.3,10.73492686]
[1746044012998,5.52868498,1808.8,1808.3,10.73492686]
[1746044013197,5.52889776,1808.7,1808.3,5.205]
[1746044013399,5.52903611,1808.7,1808.3,5.205]
[1746044013727,5.52944742,1808.5,1808.3,5.205]
[1746044013938,5.52931988,1808.6,1808.3,5.205]
[1746044014433,5.53002474,1808.4,1808.2,5.205]
[1746044014594,0.7972,1808.3,1808.2,5.205]
[1746044014796,5.53036168,1808.2,1808.1,0.05]
[1746044015023,6.32725585,1808.3,1808.1,0.05]
[1746044015293,0.7972,1808.3,1808.1,0.05]
[1746044015494,6.32742014,1808.3,1808.1,0.05]
[1746044015932,0.7972,1808.3,1808.1,0.05]
[1746044016130,0.7972,1808.3,1808.1,5.58063876]
[1746044016491,6.32494414,1808.5,1808.1,7.21219693]
[1746044016691,6.32494414,1808.5,1808.1,11.11088343]
[1746044016896,0.7954,1808.5,1808.2,5.53028833]
[1746044017217,6.3248706,1808.5,1808.1,0.05]
[1746044017418,5.5294706,1808.5,1808.1,5.58061593]